[Event "Late-Titled-Tuesday-Blitz-April-30-2024"]
[Site "Chess.com"]
[Date "2024.04.30"]
[Round "7"]
[White "FREZZY23"]
[Black "Janh4"]
[Result "0-1"]
[WhiteElo "2350"]
[BlackElo "2208"]
[TimeControl "180+1"]
[EndTime "15:17:30 PDT"]
[Termination "Janh4 won by checkmate"]

1. Nf3 {[%clk 0:02:56.5]} 1... d5 {[%clk 0:02:59.4]} 2. g3 {[%clk 0:02:56.1]}
2... Nc6 {[%clk 0:02:58.9]} 3. d4 {[%clk 0:02:55.2]} 3... Bf5 {[%clk 0:02:59.3]}
4. Bg2 {[%clk 0:02:54.6]} 4... e6 {[%clk 0:02:59.5]} 5. O-O {[%clk 0:02:54.2]}
5... Nb4 {[%clk 0:02:59.6]} 6. Na3 {[%clk 0:02:53]} 6... c5 {[%clk 0:02:56.9]}
7. c3 {[%clk 0:02:51.8]} 7... Nc6 {[%clk 0:02:56.9]} 8. Qa4 {[%clk 0:02:50.8]}
8... Bd6 {[%clk 0:02:29.9]} 9. Qb5 {[%clk 0:02:46.1]} 9... Qb6 {[%clk
0:02:26.2]} 10. Qxb6 {[%clk 0:02:45.8]} 10... axb6 {[%clk 0:02:26]} 11. Nb5
{[%clk 0:02:46.7]} 11... Kd7 {[%clk 0:02:13.9]} 12. Nxd6 {[%clk 0:02:45.5]}
12... Kxd6 {[%clk 0:02:13.8]} 13. Bf4+ {[%clk 0:02:46.2]} 13... Kd7 {[%clk
0:02:14.2]} 14. a3 {[%clk 0:02:46]} 14... f6 {[%clk 0:02:11.7]} 15. Rad1 {[%clk
0:02:44.3]} 15... Nge7 {[%clk 0:02:07.2]} 16. Rfe1 {[%clk 0:02:43.6]} 16... Be4
{[%clk 0:02:05.4]} 17. dxc5 {[%clk 0:02:42.2]} 17... bxc5 {[%clk 0:02:01.6]} 18.
Nd2 {[%clk 0:02:36]} 18... Bxg2 {[%clk 0:02:00.1]} 19. Kxg2 {[%clk 0:02:35.9]}
19... e5 {[%clk 0:01:51.6]} 20. Be3 {[%clk 0:02:34.9]} 20... d4 {[%clk 0:01:52]}
21. Nb3 {[%clk 0:02:33.9]} 21... b6 {[%clk 0:01:46.8]} 22. Bc1 {[%clk
0:02:31.4]} 22... Ke6 {[%clk 0:01:37.3]} 23. cxd4 {[%clk 0:02:30.2]} 23... cxd4
{[%clk 0:01:28.6]} 24. e3 {[%clk 0:02:29]} 24... dxe3 {[%clk 0:01:16.2]} 25.
Bxe3 {[%clk 0:02:27.8]} 25... Nd5 {[%clk 0:01:13.6]} 26. Nd4+ {[%clk 0:02:23.1]}
26... Nxd4 {[%clk 0:01:07.4]} 27. Bxd4 {[%clk 0:02:24]} 27... Kd6 {[%clk
0:00:39.4]} 28. Bxb6 {[%clk 0:02:23.5]} 28... Rhb8 {[%clk 0:00:39.1]} 29. Be3
{[%clk 0:02:16]} 29... Rxb2 {[%clk 0:00:35.8]} 30. Rd3 {[%clk 0:02:15.2]} 30...
Ke6 {[%clk 0:00:28.9]} 31. Bc1 {[%clk 0:02:14.7]} 31... Rc2 {[%clk 0:00:24.6]}
32. Red1 {[%clk 0:02:14.1]} 32... Ra5 {[%clk 0:00:22.5]} 33. Kf3 {[%clk
0:02:05.2]} 33... Rc3 {[%clk 0:00:17.8]} 34. Rxc3 {[%clk 0:02:02.9]} 34... Nxc3
{[%clk 0:00:17.3]} 35. Rd3 {[%clk 0:02:01.6]} 35... e4+ {[%clk 0:00:17.2]} 36.
Ke3 {[%clk 0:02:01.6]} 36... exd3 {[%clk 0:00:16.8]} 37. Kxd3 {[%clk 0:02:02.5]}
37... Nd5 {[%clk 0:00:16.9]} 38. Kc4 {[%clk 0:02:02.4]} 38... Ra4+ {[%clk
0:00:16.6]} 39. Kb3 {[%clk 0:02:02.6]} 39... Re4 {[%clk 0:00:15.9]} 40. a4
{[%clk 0:02:01.2]} 40... Rb4+ {[%clk 0:00:13.5]} 41. Ka3 {[%clk 0:02:00.7]}
41... Rc4 {[%clk 0:00:12.4]} 42. Bd2 {[%clk 0:02:00.2]} 42... Nb6 {[%clk
0:00:10.2]} 43. a5 {[%clk 0:02:00]} 43... Na8 {[%clk 0:00:10.1]} 44. Kb3 {[%clk
0:01:59.8]} 44... Re4 {[%clk 0:00:09.5]} 45. Be3 {[%clk 0:01:59.9]} 45... f5
{[%clk 0:00:09.4]} 46. Kc3 {[%clk 0:01:59.2]} 46... Kd5 {[%clk 0:00:09.6]} 47.
Kd3 {[%clk 0:01:59.6]} 47... Ra4 {[%clk 0:00:09.4]} 48. Bd2 {[%clk 0:01:59.7]}
48... g6 {[%clk 0:00:08.6]} 49. Ke3 {[%clk 0:01:59.9]} 49... Ke5 {[%clk
0:00:08.2]} 50. Kf3 {[%clk 0:01:59.4]} 50... Kd5 {[%clk 0:00:06.5]} 51. h3
{[%clk 0:01:58.3]} 51... h5 {[%clk 0:00:06.7]} 52. g4 {[%clk 0:01:55.9]} 52...
hxg4+ {[%clk 0:00:06.1]} 53. hxg4 {[%clk 0:01:56.2]} 53... Rxg4 {[%clk
0:00:06.4]} 54. Bf4 {[%clk 0:01:54.8]} 54... Kc6 {[%clk 0:00:02.6]} 55. Be3
{[%clk 0:01:53.2]} 55... Kb5 {[%clk 0:00:02.1]} 56. Bd2 {[%clk 0:01:53.6]} 56...
Ra4 {[%clk 0:00:01.8]} 57. Kg3 {[%clk 0:01:53.4]} 57... Nc7 {[%clk 0:00:01.8]}
58. f4 {[%clk 0:01:52.8]} 58... Ne6 {[%clk 0:00:01.9]} 59. Be3 {[%clk
0:01:52.3]} 59... Ra3 {[%clk 0:00:01.8]} 60. Kf3 {[%clk 0:01:52.1]} 60... Rxe3+
{[%clk 0:00:01.3]} 61. Kxe3 {[%clk 0:01:52.4]} 61... Kxa5 {[%clk 0:00:01.8]} 62.
Kf3 {[%clk 0:01:53]} 62... Kb5 {[%clk 0:00:02.4]} 63. Kg3 {[%clk 0:01:53.4]}
63... Kc5 {[%clk 0:00:02.9]} 64. Kh4 {[%clk 0:01:54]} 64... Kd5 {[%clk 0:00:02]}
65. Kg3 {[%clk 0:01:52.8]} 65... Ke4 {[%clk 0:00:01.9]} 66. Kh4 {[%clk
0:01:53.4]} 66... Kxf4 {[%clk 0:00:02.3]} 67. Kh3 {[%clk 0:01:54.3]} 67... Ke3
{[%clk 0:00:02.8]} 68. Kh4 {[%clk 0:01:55.2]} 68... f4 {[%clk 0:00:03.7]} 69.
Kh3 {[%clk 0:01:56.1]} 69... Nd4 {[%clk 0:00:04.2]} 70. Kh4 {[%clk 0:01:57]}
70... Nf5+ {[%clk 0:00:04.8]} 71. Kg5 {[%clk 0:01:57.9]} 71... f3 {[%clk
0:00:05.4]} 72. Kxg6 {[%clk 0:01:58.8]} 72... f2 {[%clk 0:00:06.1]} 73. Kf6
{[%clk 0:01:59.7]} 73... f1=Q {[%clk 0:00:06.9]} 74. Ke5 {[%clk 0:02:00]} 74...
Qf3 {[%clk 0:00:07.5]} 75. Ke6 {[%clk 0:01:59.9]} 75... Qc6+ {[%clk 0:00:08.2]}
76. Ke5 {[%clk 0:02:00.3]} 76... Qc5+ {[%clk 0:00:08.6]} 77. Kf6 {[%clk
0:02:00.5]} 77... Ke4 {[%clk 0:00:09.1]} 78. Kg5 {[%clk 0:02:00.7]} 78... Qe5
{[%clk 0:00:09.8]} 79. Kg6 {[%clk 0:02:00.5]} 79... Ne7+ {[%clk 0:00:10.7]} 80.
Kf7 {[%clk 0:02:00.1]} 80... Qf4+ {[%clk 0:00:11.2]} 81. Ke8 {[%clk 0:01:59.5]}
81... Kd5 {[%clk 0:00:11.9]} 82. Kd7 {[%clk 0:01:59.4]} 82... Ng6 {[%clk
0:00:12.8]} 83. Kc8 {[%clk 0:01:58]} 83... Qf7 {[%clk 0:00:13.4]} 84. Kb8 {[%clk
0:01:57.1]} 84... Kc6 {[%clk 0:00:13.8]} 85. Ka8 {[%clk 0:01:57.2]} 85... Qb7#
{[%clk 0:00:14.4]} 0-1

[Event "Late-Titled-Tuesday-Blitz-April-30-2024"]
[Site "Chess.com"]
[Date "2024.04.30"]
[Round "7"]
[White "Polish_fighter3000"]
[Black "LyonBeast"]
[Result "0-1"]
[WhiteElo "3088"]
[BlackElo "3130"]
[TimeControl "180+1"]
[EndTime "15:17:32 PDT"]
[Termination "LyonBeast won on time"]

1. e4 {[%clk 0:03:00.9]} 1... c5 {[%clk 0:02:59]} 2. Nf3 {[%clk 0:03:01.4]} 2...
d6 {[%clk 0:02:58.5]} 3. d4 {[%clk 0:03:02]} 3... cxd4 {[%clk 0:02:59.4]} 4.
Nxd4 {[%clk 0:03:02.5]} 4... Nf6 {[%clk 0:03:00.1]} 5. Nc3 {[%clk 0:03:03.1]}
5... a6 {[%clk 0:03:00.8]} 6. Bg5 {[%clk 0:03:03.3]} 6... e6 {[%clk 0:03:00.1]}
7. f4 {[%clk 0:03:03.5]} 7... Qb6 {[%clk 0:02:58.9]} 8. Qd2 {[%clk 0:03:01.4]}
8... Qxb2 {[%clk 0:02:59]} 9. Rb1 {[%clk 0:03:01.2]} 9... Qa3 {[%clk 0:02:59.4]}
10. Be2 {[%clk 0:02:56.3]} 10... Nbd7 {[%clk 0:02:50.6]} 11. O-O {[%clk
0:02:48.6]} 11... Qc5 {[%clk 0:02:49.2]} 12. Kh1 {[%clk 0:02:47.1]} 12... Be7
{[%clk 0:02:49.4]} 13. f5 {[%clk 0:02:41.1]} 13... e5 {[%clk 0:02:49.6]} 14. Nb3
{[%clk 0:02:40.1]} 14... Qc7 {[%clk 0:02:47.5]} 15. a4 {[%clk 0:02:23.9]} 15...
b6 {[%clk 0:02:37.7]} 16. Nd5 {[%clk 0:01:43.8]} 16... Nxd5 {[%clk 0:02:36.9]}
17. exd5 {[%clk 0:01:44.7]} 17... Nf6 {[%clk 0:02:27.3]} 18. Bxf6 {[%clk
0:01:43.3]} 18... Bxf6 {[%clk 0:02:26.3]} 19. Qe3 {[%clk 0:01:43.9]} 19... h6
{[%clk 0:02:05.7]} 20. c4 {[%clk 0:01:12.4]} 20... Bd7 {[%clk 0:02:00.3]} 21.
Qf2 {[%clk 0:00:54.1]} 21... Bxa4 {[%clk 0:01:51.1]} 22. Nd2 {[%clk 0:00:54.6]}
22... Rb8 {[%clk 0:01:42.8]} 23. Bd3 {[%clk 0:00:49.5]} 23... Ke7 {[%clk
0:01:33.9]} 24. Ne4 {[%clk 0:00:48.1]} 24... Bd7 {[%clk 0:01:33.6]} 25. Rb2
{[%clk 0:00:44]} 25... Rb7 {[%clk 0:01:26.4]} 26. Rfb1 {[%clk 0:00:37.6]} 26...
Rhb8 {[%clk 0:01:25.2]} 27. g4 {[%clk 0:00:23.8]} 27... Bg5 {[%clk 0:01:22.6]}
28. Nxg5 {[%clk 0:00:23.6]} 28... hxg5 {[%clk 0:01:23.5]} 29. f6+ {[%clk
0:00:24.2]} 29... gxf6 {[%clk 0:01:13.6]} 30. Rf1 {[%clk 0:00:24.7]} 30... f5
{[%clk 0:01:14.2]} 31. Bxf5 {[%clk 0:00:23.7]} 31... Qxc4 {[%clk 0:01:11.8]} 32.
Be6 {[%clk 0:00:07.8]} 32... Bxe6 {[%clk 0:01:10.2]} 33. Qf6+ {[%clk 0:00:08.2]}
33... Kd7 {[%clk 0:01:04.5]} 34. dxe6+ {[%clk 0:00:08.7]} 34... Qxe6 {[%clk
0:01:04.9]} 35. Qxg5 {[%clk 0:00:09.3]} 35... Re8 {[%clk 0:00:47.5]} 36. Rd2
{[%clk 0:00:08.7]} 36... Kc8 {[%clk 0:00:43]} 37. Rf6 {[%clk 0:00:06.6]} 37...
Qc4 {[%clk 0:00:42.9]} 38. Rdxd6 {[%clk 0:00:06.6]} 38... Rc7 {[%clk 0:00:40.9]}
39. Rxb6 {[%clk 0:00:03.5]} 39... Qe4+ {[%clk 0:00:34.5]} 40. Kg1 {[%clk
0:00:04]} 40... Qd4+ {[%clk 0:00:32.9]} 41. Kh1 {[%clk 0:00:03.2]} 41... Qd1+
{[%clk 0:00:30.7]} 42. Kg2 {[%clk 0:00:03.6]} 42... Rc2+ {[%clk 0:00:30.8]} 43.
Kh3 {[%clk 0:00:01.6]} 43... Qd3+ {[%clk 0:00:28.3]} 0-1

[Event "Late-Titled-Tuesday-Blitz-April-30-2024"]
[Site "Chess.com"]
[Date "2024.04.30"]
[Round "7"]
[White "jraosam"]
[Black "maracayo"]
[Result "0-1"]
[WhiteElo "2098"]
[BlackElo "2378"]
[TimeControl "180+1"]
[EndTime "15:17:32 PDT"]
[Termination "maracayo won by resignation"]

1. e4 {[%clk 0:03:00.9]} 1... c5 {[%clk 0:02:59.5]} 2. Nf3 {[%clk 0:03:00.9]}
2... d6 {[%clk 0:02:59.4]} 3. d4 {[%clk 0:03:01.4]} 3... cxd4 {[%clk 0:02:59.4]}
4. Nxd4 {[%clk 0:03:02.3]} 4... Nf6 {[%clk 0:02:59.2]} 5. Nc3 {[%clk 0:03:02.8]}
5... a6 {[%clk 0:02:59.2]} 6. Bg5 {[%clk 0:03:02.8]} 6... Nbd7 {[%clk
0:02:57.6]} 7. Bc4 {[%clk 0:03:00.4]} 7... e6 {[%clk 0:02:55]} 8. O-O {[%clk
0:02:57.7]} 8... Qc7 {[%clk 0:02:53.5]} 9. Bb3 {[%clk 0:02:54.7]} 9... Nc5
{[%clk 0:02:40.8]} 10. Qf3 {[%clk 0:02:44]} 10... Be7 {[%clk 0:02:37.9]} 11.
Rae1 {[%clk 0:02:44.5]} 11... O-O {[%clk 0:02:30]} 12. Qg3 {[%clk 0:02:40.5]}
12... Re8 {[%clk 0:02:15.3]} 13. f4 {[%clk 0:02:38.8]} 13... Nxb3 {[%clk
0:02:10.4]} 14. Nxb3 {[%clk 0:02:37.1]} 14... Bd7 {[%clk 0:01:28.2]} 15. Qf3
{[%clk 0:02:24.2]} 15... Bc6 {[%clk 0:01:24]} 16. g4 {[%clk 0:02:23.7]} 16... b5
{[%clk 0:01:21.4]} 17. Bh4 {[%clk 0:02:16.1]} 17... b4 {[%clk 0:01:20.4]} 18.
Nd1 {[%clk 0:02:16.1]} 18... Nxe4 {[%clk 0:00:58.7]} 19. Bxe7 {[%clk 0:02:15.8]}
19... Nc5 {[%clk 0:00:45.1]} 20. Bxd6 {[%clk 0:01:59.1]} 20... Qxd6 {[%clk
0:00:43.4]} 21. Qg3 {[%clk 0:01:59.8]} 21... Ne4 {[%clk 0:00:38]} 22. Qe3 {[%clk
0:01:58.3]} 22... f5 {[%clk 0:00:35]} 23. g5 {[%clk 0:01:56.2]} 23... a5 {[%clk
0:00:33]} 24. Nf2 {[%clk 0:01:55.5]} 24... a4 {[%clk 0:00:25.2]} 25. Nd4 {[%clk
0:01:55.6]} 25... Bd5 {[%clk 0:00:25.2]} 26. Nxe4 {[%clk 0:01:46.5]} 26... Bxe4
{[%clk 0:00:22.6]} 27. Rd1 {[%clk 0:01:46]} 27... Bd5 {[%clk 0:00:21.9]} 28. a3
{[%clk 0:01:42.7]} 28... bxa3 {[%clk 0:00:21.2]} 29. bxa3 {[%clk 0:01:43.3]}
29... Rac8 {[%clk 0:00:20]} 30. Rfe1 {[%clk 0:01:42.3]} 30... Qc5 {[%clk
0:00:19.9]} 31. Nxf5 {[%clk 0:01:37.5]} 31... exf5 {[%clk 0:00:17.3]} 32. Qxc5
{[%clk 0:01:37.1]} 32... Rxe1+ {[%clk 0:00:18.2]} 33. Rxe1 {[%clk 0:01:33.5]}
33... Rxc5 {[%clk 0:00:19.1]} 34. Re5 {[%clk 0:01:34.3]} 34... Rb5 {[%clk
0:00:18.5]} 35. Rxf5 {[%clk 0:01:34]} 35... Bc4 {[%clk 0:00:14.6]} 36. Rxb5
{[%clk 0:01:33.3]} 36... Bxb5 {[%clk 0:00:15.5]} 37. Kf2 {[%clk 0:01:34.2]}
37... Kf7 {[%clk 0:00:15.5]} 38. Ke3 {[%clk 0:01:34.9]} 38... g6 {[%clk
0:00:15.8]} 39. Kd4 {[%clk 0:01:35.8]} 39... Ke6 {[%clk 0:00:16]} 40. Kc5 {[%clk
0:01:33.7]} 40... Be2 {[%clk 0:00:15.1]} 41. c4 {[%clk 0:01:33.9]} 41... Kf5
{[%clk 0:00:15]} 42. Kb4 {[%clk 0:01:34.3]} 42... Kxf4 {[%clk 0:00:15.4]} 43. c5
{[%clk 0:01:35]} 43... Bf3 {[%clk 0:00:14.9]} 44. Kxa4 {[%clk 0:01:35.5]} 44...
Kxg5 {[%clk 0:00:15.2]} 45. Kb5 {[%clk 0:01:35.4]} 45... Kf6 {[%clk 0:00:16.1]}
46. a4 {[%clk 0:01:35.1]} 46... Ke7 {[%clk 0:00:17]} 47. a5 {[%clk 0:01:34.3]}
47... Kd7 {[%clk 0:00:17.9]} 48. Kb6 {[%clk 0:01:34.6]} 48... g5 {[%clk
0:00:16.4]} 49. a6 {[%clk 0:01:34.8]} 49... g4 {[%clk 0:00:16.9]} 50. Kb5 {[%clk
0:01:33.3]} 50... h5 {[%clk 0:00:16.3]} 51. Kc4 {[%clk 0:01:33.5]} 51... h4
{[%clk 0:00:16.6]} 52. Kd3 {[%clk 0:01:33.7]} 52... g3 {[%clk 0:00:17]} 53. hxg3
{[%clk 0:01:24.6]} 53... hxg3 {[%clk 0:00:17.9]} 54. Ke3 {[%clk 0:01:24.3]}
54... g2 {[%clk 0:00:18.1]} 55. Kf2 {[%clk 0:01:23.2]} 55... Ba8 {[%clk
0:00:18.3]} 56. Kg1 {[%clk 0:01:21.2]} 56... Ke6 {[%clk 0:00:18.3]} 57. Kf2
{[%clk 0:01:19.8]} 57... Ke5 {[%clk 0:00:18.4]} 58. Kg1 {[%clk 0:01:20]} 58...
Kd4 {[%clk 0:00:18.6]} 59. Kf2 {[%clk 0:01:19]} 59... Kxc5 {[%clk 0:00:18.7]}
60. Kg1 {[%clk 0:01:19.7]} 60... Kb6 {[%clk 0:00:19]} 61. Kf2 {[%clk 0:01:20.4]}
61... Kxa6 {[%clk 0:00:19.4]} 62. Kg1 {[%clk 0:01:21.3]} 62... Kb5 {[%clk
0:00:20.1]} 63. Kf2 {[%clk 0:01:21.6]} 63... Kc5 {[%clk 0:00:21]} 64. Kg1 {[%clk
0:01:22.2]} 64... Kd4 {[%clk 0:00:21.9]} 65. Kf2 {[%clk 0:01:22.7]} 65... Kd3
{[%clk 0:00:22.1]} 66. Kg1 {[%clk 0:01:23.2]} 66... Ke2 {[%clk 0:00:21.9]} 67.
Kh2 {[%clk 0:01:21.8]} 67... Kf2 {[%clk 0:00:22.8]} 68. Kh3 {[%clk 0:01:21.7]}
68... g1=Q {[%clk 0:00:23.5]} 69. Kh4 {[%clk 0:01:21.3]} 69... Qg6 {[%clk
0:00:24]} 0-1

[Event "Late-Titled-Tuesday-Blitz-April-30-2024"]
[Site "Chess.com"]
[Date "2024.04.30"]
[Round "7"]
[White "Hilary46"]
[Black "Agustin_Meza"]
[Result "1-0"]
[WhiteElo "2722"]
[BlackElo "2154"]
[TimeControl "180+1"]
[EndTime "15:17:32 PDT"]
[Termination "Hilary46 won by checkmate"]

1. e4 {[%clk 0:03:00.9]} 1... c6 {[%clk 0:02:59.3]} 2. d4 {[%clk 0:03:00.5]}
2... d5 {[%clk 0:03:00.2]} 3. Nc3 {[%clk 0:03:00.9]} 3... dxe4 {[%clk
0:02:55.7]} 4. Nxe4 {[%clk 0:03:01.8]} 4... Nf6 {[%clk 0:02:56.6]} 5. Nxf6+
{[%clk 0:03:01.3]} 5... exf6 {[%clk 0:02:57.5]} 6. c3 {[%clk 0:03:02.1]} 6...
Bd6 {[%clk 0:02:57.2]} 7. Bd3 {[%clk 0:03:02.7]} 7... O-O {[%clk 0:02:57.1]} 8.
Qc2 {[%clk 0:03:03.4]} 8... Re8+ {[%clk 0:02:54.6]} 9. Ne2 {[%clk 0:03:04.1]}
9... h6 {[%clk 0:02:52.8]} 10. O-O {[%clk 0:03:02.7]} 10... Nd7 {[%clk
0:02:50.8]} 11. Ng3 {[%clk 0:03:02.1]} 11... Nf8 {[%clk 0:02:50.2]} 12. Nf5
{[%clk 0:03:02.4]} 12... Bxf5 {[%clk 0:02:44.9]} 13. Bxf5 {[%clk 0:03:03.3]}
13... Qc7 {[%clk 0:02:45.4]} 14. h3 {[%clk 0:03:02.8]} 14... Ne6 {[%clk
0:02:45.2]} 15. g3 {[%clk 0:02:52.1]} 15... c5 {[%clk 0:02:35.5]} 16. d5 {[%clk
0:02:50.5]} 16... Ng5 {[%clk 0:02:35.6]} 17. Kg2 {[%clk 0:02:35.4]} 17... g6
{[%clk 0:02:33.8]} 18. h4 {[%clk 0:02:23.2]} 18... Nh7 {[%clk 0:02:18.6]} 19.
Bd3 {[%clk 0:01:15.8]} 19... c4 {[%clk 0:02:16.2]} 20. Be2 {[%clk 0:01:16.1]}
20... Bf8 {[%clk 0:02:08.7]} 21. Bf4 {[%clk 0:01:10.7]} 21... Qd7 {[%clk
0:02:07.8]} 22. Bf3 {[%clk 0:01:10]} 22... g5 {[%clk 0:01:25.6]} 23. Be3 {[%clk
0:00:49.4]} 23... f5 {[%clk 0:01:20.7]} 24. hxg5 {[%clk 0:00:40.6]} 24... hxg5
{[%clk 0:01:19.4]} 25. Rh1 {[%clk 0:00:38.6]} 25... g4 {[%clk 0:01:18.2]} 26.
Bxg4 {[%clk 0:00:38.4]} 26... Qxd5+ {[%clk 0:01:15.4]} 27. Bf3 {[%clk
0:00:38.3]} 27... Re4 {[%clk 0:01:08.9]} 28. Rad1 {[%clk 0:00:35.6]} 28... Qe6
{[%clk 0:01:08.3]} 29. Bxe4 {[%clk 0:00:30.9]} 29... fxe4 {[%clk 0:01:09.2]} 30.
Qe2 {[%clk 0:00:29.6]} 30... Bg7 {[%clk 0:00:52.5]} 31. Bd4 {[%clk 0:00:26.8]}
31... f6 {[%clk 0:00:32]} 32. Rh4 {[%clk 0:00:23.3]} 32... Ng5 {[%clk
0:00:31.2]} 33. Be3 {[%clk 0:00:20.3]} 33... Nf3 {[%clk 0:00:27.9]} 34. Rh5
{[%clk 0:00:19.4]} 34... Qg4 {[%clk 0:00:26.7]} 35. Qxc4+ {[%clk 0:00:12.1]}
35... Kf8 {[%clk 0:00:26.6]} 36. Rdh1 {[%clk 0:00:11.5]} 36... Ne5 {[%clk
0:00:20.7]} 37. Bc5+ {[%clk 0:00:10.9]} 37... Ke8 {[%clk 0:00:20.7]} 38. Rh8+
{[%clk 0:00:11.5]} 38... Kd7 {[%clk 0:00:20.1]} 39. Qd5+ {[%clk 0:00:11.6]}
39... Kc7 {[%clk 0:00:17.3]} 40. Qd6# {[%clk 0:00:12]} 1-0

[Event "Late-Titled-Tuesday-Blitz-April-30-2024"]
[Site "Chess.com"]
[Date "2024.04.30"]
[Round "7"]
[White "Njal28"]
[Black "WoodlandMagic"]
[Result "1-0"]
[WhiteElo "3085"]
[BlackElo "2865"]
[TimeControl "180+1"]
[EndTime "15:17:33 PDT"]
[Termination "Njal28 won by resignation"]

1. d4 {[%clk 0:03:00.9]} 1... Nf6 {[%clk 0:02:59.5]} 2. c4 {[%clk 0:03:01.3]}
2... c6 {[%clk 0:03:00]} 3. Nc3 {[%clk 0:03:01.7]} 3... d5 {[%clk 0:03:00.2]} 4.
Nf3 {[%clk 0:03:02.5]} 4... dxc4 {[%clk 0:02:59.7]} 5. e4 {[%clk 0:03:03.2]}
5... b5 {[%clk 0:02:59.3]} 6. a4 {[%clk 0:03:03.8]} 6... b4 {[%clk 0:02:57.4]}
7. Na2 {[%clk 0:03:03.4]} 7... Nxe4 {[%clk 0:02:57.1]} 8. Bxc4 {[%clk
0:03:03.6]} 8... Nd6 {[%clk 0:02:55.1]} 9. Bb3 {[%clk 0:03:02.2]} 9... a5 {[%clk
0:02:49.5]} 10. O-O {[%clk 0:03:01.2]} 10... Bf5 {[%clk 0:02:46.4]} 11. Ne5
{[%clk 0:02:57.4]} 11... e6 {[%clk 0:02:43.2]} 12. Re1 {[%clk 0:02:54.2]} 12...
Be7 {[%clk 0:02:41.9]} 13. Bf4 {[%clk 0:02:48.6]} 13... O-O {[%clk 0:02:41.1]}
14. Nc1 {[%clk 0:02:48.6]} 14... Qb6 {[%clk 0:02:22.6]} 15. Ncd3 {[%clk
0:02:40.4]} 15... Qxd4 {[%clk 0:01:37.2]} 16. Be3 {[%clk 0:02:36.5]} 16... Qh4
{[%clk 0:01:36.9]} 17. Nf3 {[%clk 0:02:21.1]} 17... Qe4 {[%clk 0:00:34.7]} 18.
Bg5 {[%clk 0:02:19.3]} 18... Qxd3 {[%clk 0:00:32.2]} 19. Bxe7 {[%clk 0:02:19.4]}
19... Nb7 {[%clk 0:00:12.6]} 20. Bxf8 {[%clk 0:02:16.9]} 20... Kxf8 {[%clk
0:00:08.2]} 21. Nd4 {[%clk 0:02:17.4]} 21... Qxd1 {[%clk 0:00:02.7]} 22. Raxd1
{[%clk 0:02:18.3]} 22... Bg6 {[%clk 0:00:03]} 23. Bxe6 {[%clk 0:01:44.6]} 23...
fxe6 {[%clk 0:00:03.6]} 24. Nxe6+ {[%clk 0:01:45.5]} 24... Kf7 {[%clk
0:00:02.9]} 25. Nd8+ {[%clk 0:01:37.5]} 25... Nxd8 {[%clk 0:00:01.2]} 26. Rxd8
{[%clk 0:01:38.4]} 26... Ra7 {[%clk 0:00:00.8]} 27. Rxb8 {[%clk 0:01:37.5]}
27... Rc7 {[%clk 0:00:01.2]} 28. f4 {[%clk 0:01:23.5]} 28... c5 {[%clk
0:00:01.2]} 29. f5 {[%clk 0:01:24.2]} 29... Bxf5 {[%clk 0:00:01.5]} 30. Rf1
{[%clk 0:01:25.1]} 30... Kg6 {[%clk 0:00:01.8]} 31. Rb6+ {[%clk 0:01:23.4]}
31... Kg5 {[%clk 0:00:02.2]} 32. g3 {[%clk 0:01:06.6]} 32... g6 {[%clk
0:00:02.3]} 33. h4+ {[%clk 0:01:05.7]} 33... Kg4 {[%clk 0:00:01.8]} 34. Kh2
{[%clk 0:01:05.6]} 34... c4 {[%clk 0:00:01]} 35. Rb5 {[%clk 0:00:41]} 35... Kh5
{[%clk 0:00:01.6]} 36. Rg1 {[%clk 0:00:36.3]} 36... Kh6 {[%clk 0:00:01.5]} 37.
g4 {[%clk 0:00:36.1]} 37... Bd3 {[%clk 0:00:02.2]} 38. Rxa5 {[%clk 0:00:33.7]}
38... c3 {[%clk 0:00:02.4]} 39. bxc3 {[%clk 0:00:34.6]} 39... bxc3 {[%clk
0:00:03.1]} 40. Rc1 {[%clk 0:00:33.5]} 40... c2 {[%clk 0:00:03.4]} 41. Rd5
{[%clk 0:00:33.1]} 41... Be4 {[%clk 0:00:03.8]} 42. Rd4 {[%clk 0:00:32.5]} 42...
Re7 {[%clk 0:00:03.1]} 43. a5 {[%clk 0:00:28.2]} 43... g5 {[%clk 0:00:02.3]} 44.
a6 {[%clk 0:00:26.2]} 44... gxh4 {[%clk 0:00:02.2]} 45. a7 {[%clk 0:00:27]}
45... Rxa7 {[%clk 0:00:01.4]} 1-0

[Event "Late-Titled-Tuesday-Blitz-April-30-2024"]
[Site "Chess.com"]
[Date "2024.04.30"]
[Round "7"]
[White "HajiyevKanan"]
[Black "Hudijegszid"]
[Result "0-1"]
[WhiteElo "2616"]
[BlackElo "2478"]
[TimeControl "180+1"]
[EndTime "15:17:33 PDT"]
[Termination "Hudijegszid won by checkmate"]

1. d4 {[%clk 0:03:00.9]} 1... d5 {[%clk 0:02:54.3]} 2. Nf3 {[%clk 0:03:00.7]}
2... e6 {[%clk 0:02:52.7]} 3. c4 {[%clk 0:03:01.3]} 3... a6 {[%clk 0:02:51.1]}
4. cxd5 {[%clk 0:03:01.3]} 4... exd5 {[%clk 0:02:50.8]} 5. Nc3 {[%clk
0:03:02.2]} 5... h6 {[%clk 0:02:50.5]} 6. Bf4 {[%clk 0:03:00.8]} 6... Nf6 {[%clk
0:02:50.1]} 7. e3 {[%clk 0:02:59.6]} 7... Bd6 {[%clk 0:02:50.4]} 8. Bxd6 {[%clk
0:02:57.5]} 8... Qxd6 {[%clk 0:02:51.3]} 9. Bd3 {[%clk 0:02:57.9]} 9... O-O
{[%clk 0:02:49.5]} 10. Qc2 {[%clk 0:02:53.6]} 10... Nc6 {[%clk 0:02:49.6]} 11.
a3 {[%clk 0:02:52.1]} 11... Bg4 {[%clk 0:02:48.9]} 12. Nd2 {[%clk 0:02:49.3]}
12... Ne7 {[%clk 0:02:43.9]} 13. O-O {[%clk 0:02:49.2]} 13... c6 {[%clk
0:02:40]} 14. b4 {[%clk 0:02:48.8]} 14... g6 {[%clk 0:02:29.9]} 15. h3 {[%clk
0:02:44.7]} 15... Bf5 {[%clk 0:02:29.3]} 16. Nf3 {[%clk 0:02:45.3]} 16... Bxd3
{[%clk 0:02:29]} 17. Qxd3 {[%clk 0:02:46.2]} 17... Nf5 {[%clk 0:02:26.5]} 18.
Rab1 {[%clk 0:02:40.9]} 18... Qe7 {[%clk 0:02:08.8]} 19. a4 {[%clk 0:02:38.3]}
19... b5 {[%clk 0:02:07.6]} 20. Ne5 {[%clk 0:02:38]} 20... Rfc8 {[%clk
0:02:04.6]} 21. Rfc1 {[%clk 0:02:26.5]} 21... Nd6 {[%clk 0:02:02.6]} 22. Ne2
{[%clk 0:02:18.3]} 22... Nc4 {[%clk 0:02:01.2]} 23. f4 {[%clk 0:02:11.9]} 23...
Ne4 {[%clk 0:01:53.9]} 24. Nxc4 {[%clk 0:01:58.1]} 24... bxc4 {[%clk 0:01:52.4]}
25. Qc2 {[%clk 0:01:58]} 25... Rcb8 {[%clk 0:01:48.5]} 26. Nc3 {[%clk
0:01:54.7]} 26... Nd6 {[%clk 0:01:38.8]} 27. Re1 {[%clk 0:01:50.7]} 27... Re8
{[%clk 0:01:33.1]} 28. b5 {[%clk 0:01:43.5]} 28... axb5 {[%clk 0:01:31.8]} 29.
axb5 {[%clk 0:01:43.9]} 29... Nxb5 {[%clk 0:01:31.3]} 30. Nxb5 {[%clk
0:01:43.2]} 30... cxb5 {[%clk 0:01:30.1]} 31. Rxb5 {[%clk 0:01:44.1]} 31... Ra3
{[%clk 0:01:28.2]} 32. Rxd5 {[%clk 0:01:37.7]} 32... Rxe3 {[%clk 0:01:27.4]} 33.
Rxe3 {[%clk 0:01:17]} 33... Qxe3+ {[%clk 0:01:28.3]} 34. Qf2 {[%clk 0:01:17.3]}
34... Qc1+ {[%clk 0:01:20.7]} 35. Kh2 {[%clk 0:01:15.2]} 35... c3 {[%clk
0:00:59.6]} 36. Rc5 {[%clk 0:01:11.3]} 36... Qd2 {[%clk 0:00:51.6]} 37. Qg3
{[%clk 0:00:59.8]} 37... c2 {[%clk 0:00:36.8]} 38. Qc3 {[%clk 0:00:35.3]} 38...
Qxf4+ {[%clk 0:00:35.1]} 39. Kg1 {[%clk 0:00:31.2]} 39... Re2 {[%clk 0:00:21.9]}
40. Rc8+ {[%clk 0:00:27.3]} 40... Kh7 {[%clk 0:00:20.9]} 41. Kh1 {[%clk
0:00:13.9]} 41... Qf1+ {[%clk 0:00:19.3]} 42. Kh2 {[%clk 0:00:13.4]} 42... Rxg2#
{[%clk 0:00:18.3]} 0-1